bitfinex-derivatives/quotes_BTCF0:USTF0_20250830
["timestamp","ask_amount","ask_price","bid_price","bid_amount"]
[1756581132532,0.02076859,108770.0,108760.0,2.86592557]
[1756581145344,0.02373793,108770.0,108760.0,2.86592557]
[1756581161357,0.02373793,108770.0,108760.0,2.86432557]
[1756581162358,0.02373793,108770.0,108760.0,2.02072557]
[1756581162557,0.02373793,108770.0,108760.0,2.86404557]
[1756581163156,0.05886793,108770.0,108760.0,2.86404557]
[1756581163553,0.05886793,108770.0,108760.0,2.02072557]
[1756581163857,0.02373793,108770.0,108760.0,2.86392557]
[1756581165857,0.02373793,108770.0,108760.0,2.86348557]
[1756581169358,0.02373793,108770.0,108760.0,2.86362214]
[1756581172761,0.02373793,108770.0,108760.0,2.2425667]
[1756581172963,0.02373793,108770.0,108760.0,2.86362214]
[1756581180670,0.02373793,108770.0,108760.0,2.14202214]
[1756581180856,0.02373793,108770.0,108760.0,2.86362214]
[1756581184267,0.02373793,108770.0,108760.0,2.14202214]
[1756581184467,0.02373793,108770.0,108760.0,2.86362214]
[1756581187968,0.34565772,108780.0,108760.0,2.86362214]
[1756581188169,0.42375008,108780.0,108770.0,0.67132772]
[1756581188368,0.42375008,108780.0,108770.0,1.05132772]
[1756581189974,0.42475008,108780.0,108770.0,1.05591772]
[1756581190470,0.42475008,108780.0,108770.0,1.32241772]
[1756581191577,0.42475008,108780.0,108770.0,0.94241772]
[1756581191871,0.42475008,108780.0,108770.0,1.78289772]
[1756581194776,0.42475008,108780.0,108770.0,1.42209772]
[1756581195074,0.42475008,108780.0,108770.0,1.78289772]
[1756581196576,0.42475008,108780.0,108770.0,2.11289772]
[1756581196775,0.11422236,108780.0,108770.0,2.11289772]
[1756581197075,0.42475008,108780.0,108770.0,1.78289772]
[1756581198276,0.47435588,108780.0,108770.0,1.78289772]
[1756581198580,0.47435588,108780.0,108770.0,1.78213772]
[1756581202683,0.47435588,108780.0,108770.0,2.11213772]
[1756581203475,0.47435588,108780.0,108770.0,0.96241772]
[1756581203682,0.47435588,108780.0,108770.0,1.80165772]
[1756581204481,0.47435588,108780.0,108770.0,1.80153772]
[1756581205584,0.47435588,108780.0,108770.0,1.49093]
[1756581205782,0.47435588,108780.0,108770.0,1.80145772]
[1756581206588,0.47435588,108780.0,108770.0,0.96241772]
[1756581206785,0.47435588,108780.0,108770.0,0.94241772]
[1756581206985,0.47435588,108780.0,108770.0,1.78149772]
[1756581208986,0.16382816,108780.0,108770.0,0.94241772]
[1756581209190,0.47435588,108780.0,108770.0,1.78165772]
[1756581211086,0.47435588,108780.0,108770.0,1.78145772]
[1756581217190,0.47435588,108780.0,108770.0,1.47093]
[1756581217390,0.47435588,108780.0,108770.0,1.78145772]
[1756581217792,0.12869816,108780.0,108770.0,1.80145772]
[1756581217986,0.43922588,108780.0,108770.0,1.78145772]
[1756581218290,0.43922588,108780.0,108770.0,1.80145772]
[1756581218990,0.43922588,108780.0,108770.0,1.78145772]
[1756581219187,0.43922588,108780.0,108770.0,2.16145772]
[1756581221090,0.47415588,108780.0,108770.0,2.16145772]
[1756581223491,0.16362816,108780.0,108770.0,2.16145772]
[1756581223692,0.47415588,108780.0,108770.0,2.16145772]
[1756581224690,0.47415588,108780.0,108770.0,1.80065772]
[1756581224885,0.47415588,108780.0,108770.0,2.16145772]
[1756581225895,0.16362816,108780.0,108770.0,2.16145772]
[1756581226290,0.12869816,108780.0,108770.0,2.16145772]
[1756581227189,0.43922588,108780.0,108770.0,2.16145772]
[1756581228290,0.12869816,108780.0,108770.0,2.16145772]
[1756581228791,0.10434816,108780.0,108770.0,2.16145772]
[1756581228992,0.02474236,108780.0,108770.0,2.47198544]
[1756581236600,0.02474236,108780.0,108770.0,1.85093]
[1756581236799,0.02474236,108780.0,108770.0,2.47198544]
[1756581239701,0.02474236,108780.0,108770.0,1.63294544]
[1756581240004,0.02474236,108780.0,108770.0,2.16045772]
[1756581240005,0.05967236,108780.0,108770.0,2.16045772]
[1756581240404,0.05967236,108780.0,108770.0,1.32241772]
[1756581240605,0.05967236,108780.0,108770.0,1.78045772]
[1756581240805,0.05967236,108780.0,108770.0,2.11045772]
[1756581241302,0.02474236,108780.0,108770.0,1.78045772]
[1756581241507,0.02474236,108780.0,108770.0,1.80045772]
[1756581242208,0.02474236,108780.0,108770.0,2.15045772]
[1756581243007,0.02474236,108780.0,108770.0,1.78965772]
[1756581243205,0.02474236,108780.0,108770.0,2.51125772]
[1756581245206,0.02474236,108780.0,108770.0,2.82178544]
[1756581252414,0.02474236,108780.0,108770.0,2.82130544]
[1756581256617,0.02474236,108780.0,108770.0,1.98374544]
[1756581256818,0.02474236,108780.0,108770.0,2.82106544]
[1756581271429,0.02474236,108780.0,108770.0,2.47106544]
[1756581271733,0.02474236,108780.0,108770.0,2.80106544]
[1756581277427,0.02474236,108780.0,108770.0,2.45106544]
[1756581277632,0.02474236,108780.0,108770.0,2.79106544]
[1756581279133,0.02474236,108780.0,108770.0,1.95374544]
[1756581279329,0.02474236,108780.0,108770.0,2.79102544]
[1756581279830,0.02474236,108780.0,108770.0,2.48049772]
[1756581280732,0.02474236,108780.0,108770.0,2.16049772]
[1756581280932,0.02474236,108780.0,108770.0,2.52049772]
[1756581287535,0.05974236,108780.0,108770.0,2.52045772]
[1756581288842,0.02474236,108780.0,108770.0,2.52045772]
[1756581291744,0.02474236,108780.0,108770.0,2.54089797]
[1756581296948,0.02474236,108780.0,108770.0,1.81929797]
[1756581297144,0.02474236,108780.0,108770.0,2.54089797]
[1756581301252,0.9322078,108780.0,108770.0,1.01313025]
[1756581301452,0.9322078,108780.0,108770.0,1.85025025]
[1756581301647,0.9818136,108780.0,108770.0,0.60205797]
[1756581301950,0.69389588,108780.0,108770.0,1.43917797]
[1756581302152,1.0044236,108780.0,108770.0,1.43917797]
[1756581302648,1.0044236,108780.0,108770.0,0.29153025]
[1756581302855,1.0044236,108780.0,108770.0,1.12865025]
[1756581303252,1.0044236,108780.0,108770.0,0.86215025]
[1756581303453,1.0044236,108780.0,108770.0,1.17267797]
[1756581304352,1.0044236,108780.0,108770.0,0.86215025]
[1756581305055,1.0044236,108780.0,108770.0,1.17267797]
[1756581306059,0.38336816,108780.0,108770.0,1.17267797]
[1756581306454,0.69389588,108780.0,108770.0,1.17267797]
[1756581308158,1.0044236,108780.0,108770.0,1.17267797]
[1756581312360,0.9548178,108780.0,108770.0,1.17267797]
[1756581313465,0.33376236,108780.0,108770.0,1.17267797]
[1756581313666,1.0044236,108780.0,108770.0,1.17267797]
[1756581320072,1.0044236,108780.0,108770.0,0.86215025]
[1756581320269,1.0044236,108780.0,108770.0,1.17267797]
[1756581328578,0.9548178,108780.0,108770.0,1.17267797]
[1756581328777,0.9548178,108780.0,108770.0,0.86207025]
[1756581329082,0.33376236,108780.0,108770.0,1.17259797]
[1756581329383,0.9548178,108780.0,108770.0,1.17259797]
[1756581330684,1.02099304,108780.0,108770.0,1.17259797]
[1756581331780,1.02099304,108780.0,108770.0,1.17255797]
[1756581332079,1.02099304,108780.0,108770.0,0.33555797]
[1756581332281,1.02099304,108780.0,108770.0,0.86203025]
[1756581332583,1.02099304,108780.0,108770.0,1.17255797]
[1756581334086,1.02099304,108780.0,108770.0,0.84159]
[1756581334287,1.02099304,108780.0,108770.0,1.15211772]
[1756581338486,0.9548178,108780.0,108770.0,1.15211772]
[1756581338691,1.02099304,108780.0,108770.0,1.15211772]
[1756581338888,0.3999376,108780.0,108770.0,1.15211772]
[1756581339592,1.02099304,108780.0,108770.0,0.84159]
[1756581339890,1.02099304,108780.0,108770.0,1.15211772]
[1756581341784,1.02099304,108780.0,108770.0,0.84159]
[1756581341994,1.02099304,108780.0,108770.0,1.15211772]
[1756581342282,0.9548178,108780.0,108770.0,1.15211772]
[1756581343089,0.33376236,108780.0,108770.0,1.15211772]
[1756581343290,0.29735236,108780.0,108770.0,1.15211772]
[1756581343495,0.60788008,108780.0,108770.0,1.15211772]
[1756581343790,0.64307008,108780.0,108770.0,1.15211772]
[1756581345994,0.33254236,108780.0,108770.0,1.15211772]
[1756581346194,0.64307008,108780.0,108770.0,1.15211772]
[1756581348993,0.64307008,108780.0,108770.0,1.52211772]
[1756581349191,0.64307008,108780.0,108770.0,0.86159]
[1756581349498,0.64307008,108780.0,108770.0,1.15211772]
[1756581350095,0.64307008,108780.0,108770.0,0.84159]
[1756581350290,0.64307008,108780.0,108770.0,1.15211772]
[1756581353096,0.33254236,108780.0,108770.0,1.15211772]
[1756581353296,0.64307008,108780.0,108770.0,1.15211772]
[1756581359198,0.39307008,108780.0,108770.0,1.15211772]
[1756581360597,0.08254236,108780.0,108770.0,1.15211772]
[1756581360796,0.39307008,108780.0,108770.0,1.15211772]
[1756581361500,0.39307008,108780.0,108770.0,1.17211772]
[1756581362099,0.39307008,108780.0,108770.0,1.15211772]
[1756581362400,0.39307008,108780.0,108770.0,1.17211772]
[1756581363107,0.39307008,108780.0,108770.0,1.15211772]
[1756581363503,0.04735236,108780.0,108770.0,1.15211772]
[1756581363805,0.001,108780.0,108770.0,2.41344544]
[1756581364001,0.02474236,108780.0,108770.0,2.41344544]
[1756581364503,0.02474236,108780.0,108770.0,2.39344544]
[1756581364705,0.02474236,108780.0,108770.0,2.45344544]
[1756581374115,0.02474236,108780.0,108770.0,2.09344544]
[1756581374309,0.02474236,108780.0,108770.0,2.45344544]
[1756581374511,0.02474236,108780.0,108770.0,2.71994544]
[1756581379113,0.02474236,108780.0,108770.0,2.71950544]
[1756581382213,0.02474236,108780.0,108770.0,1.71845]
[1756581382417,0.02474236,108780.0,108770.0,2.67946544]
[1756581384018,0.02474236,108780.0,108770.0,2.77139294]
[1756581389224,0.02474236,108780.0,108770.0,2.67938544]
[1756581389722,0.05980236,108780.0,108770.0,2.40881772]
[1756581390621,0.05980236,108780.0,108770.0,1.57241772]
[1756581390817,0.05980236,108780.0,108770.0,2.40881772]
[1756581391617,0.05980236,108780.0,108770.0,1.57241772]
[1756581391817,0.05980236,108780.0,108770.0,1.71825]
[1756581391818,0.08272236,108780.0,108770.0,1.71825]
[1756581392019,0.08272236,108780.0,108770.0,2.33877772]
[1756581398520,0.04766236,108780.0,108770.0,2.33877772]
[1756581403024,0.02474236,108780.0,108770.0,2.74123254]
[1756581412747,0.02474236,108780.0,108770.0,3.01010544]
[1756581412943,0.02474236,108780.0,108770.0,3.00990544]
[1756581417652,0.02474236,108780.0,108770.0,2.28830544]
[1756581417847,0.02474236,108780.0,108770.0,3.00990544]
[1756581419251,0.02474236,108780.0,108770.0,2.75990544]
[1756581433763,0.02474236,108780.0,108770.0,1.92374544]
[1756581433966,0.02474236,108780.0,108770.0,2.75962544]
[1756581448171,0.02474236,108780.0,108770.0,1.82857]
[1756581448373,0.02474236,108780.0,108770.0,2.80962544]
[1756581456079,0.02474236,108780.0,108770.0,1.82857]
[1756581456377,0.02474236,108780.0,108770.0,2.76962544]
[1756581457378,0.02474236,108780.0,108770.0,2.86155264]
[1756581464590,0.02474236,108780.0,108770.0,3.42208036]
[1756581464792,0.02474236,108780.0,108770.0,3.11155264]
[1756581465688,0.02474236,108780.0,108770.0,3.42208036]
[1756581465893,0.02474236,108780.0,108770.0,3.11155264]
[1756581466592,0.02474236,108780.0,108770.0,3.11255264]
[1756581466785,0.02374236,108780.0,108770.0,3.11355264]
[1756581468788,0.02374236,108780.0,108770.0,2.33820036]
[1756581468985,0.02374236,108780.0,108770.0,3.17360036]
[1756581469180,0.02374236,108780.0,108770.0,3.42360036]
[1756581472496,0.02374236,108780.0,108770.0,2.58820036]
[1756581472689,0.02374236,108780.0,108770.0,3.42352036]
[1756581476688,0.02374236,108780.0,108770.0,2.58820036]
[1756581476997,0.02374236,108780.0,108770.0,3.42344036]
[1756581478697,0.03697,108790.0,108770.0,3.42344036]
[1756581478898,0.08509697,108790.0,108780.0,1.29238316]
[1756581479088,0.08509697,108790.0,108780.0,1.62238316]
[1756581479494,0.08509697,108790.0,108780.0,2.14705544]
[1756581480498,0.08509697,108790.0,108780.0,2.15164544]
[1756581481196,0.08509697,108790.0,108780.0,2.41814544]
[1756581481907,0.08509697,108790.0,108780.0,1.58294544]
[1756581482200,0.33509697,108790.0,108780.0,1.37294544]
[1756581482396,0.33509697,108790.0,108780.0,2.45810544]
[1756581483596,0.33509697,108790.0,108780.0,2.08810544]
[1756581483799,0.33509697,108790.0,108780.0,2.40810544]
[1756581484000,0.33509697,108790.0,108780.0,1.57294544]
[1756581484202,0.33509697,108790.0,108780.0,2.40810544]
[1756581484800,0.33509697,108790.0,108780.0,2.43810544]
[1756581485402,0.33509697,108790.0,108780.0,2.19810544]
[1756581485594,0.33509697,108790.0,108780.0,2.41810544]
[1756581496310,0.33509697,108790.0,108780.0,2.20810544]
[1756581496517,0.33509697,108790.0,108780.0,2.42810544]
[1756581498014,0.33509697,108790.0,108780.0,2.19810544]
[1756581498218,0.33509697,108790.0,108780.0,1.46705]
[1756581498410,0.33509697,108790.0,108780.0,2.08810544]
[1756581498610,0.33509697,108790.0,108780.0,2.46810544]
[1756581508623,0.29812697,108790.0,108780.0,2.46810544]
[1756581511421,0.27357697,108790.0,108780.0,2.46810544]
[1756581519234,0.30820697,108790.0,108780.0,1.62705]
[1756581519532,0.27357697,108790.0,108780.0,2.41810544]
[1756581520029,0.02357697,108790.0,108780.0,2.82055186]
[1756581520933,0.02357697,108790.0,108780.0,2.82155186]
[1756581521632,0.02357697,108790.0,108780.0,2.82255186]
[1756581522025,0.02357697,108790.0,108780.0,2.82155186]
[1756581522233,0.02357697,108790.0,108780.0,2.82255186]
[1756581531041,0.02357697,108790.0,108780.0,1.98739186]
[1756581531234,0.02357697,108790.0,108780.0,2.82211186]
[1756581533142,0.02357697,108790.0,108780.0,1.98739186]
[1756581533339,0.02357697,108790.0,108780.0,2.82207186]
[1756581537735,0.02357697,108790.0,108780.0,3.18287186]
[1756581550252,0.02357697,108790.0,108780.0,4.93075186]
[1756581552856,0.02357697,108790.0,108780.0,5.18075186]
[1756581556454,0.001,108800.0,108780.0,5.18075186]
[1756581556652,0.001,108800.0,108790.0,1.29238316]
[1756581556857,0.001,108800.0,108790.0,1.3326949]
[1756581557050,0.001,108800.0,108790.0,1.64322262]
[1756581558158,0.001,108800.0,108790.0,1.3372849]
[1756581559754,0.001,108800.0,108790.0,1.64781262]
[1756581560057,0.001,108800.0,108790.0,1.64881262]
[1756581560555,0.001,108800.0,108790.0,1.64981262]
[1756581564060,0.001,108800.0,108790.0,1.74172322]
[1756581567266,0.001,108800.0,108790.0,2.00822322]
[1756581568464,0.0244005,108800.0,108790.0,2.00822322]
[1756581579781,0.0244005,108800.0,108790.0,2.84246322]
[1756581581585,0.0244005,108800.0,108790.0,2.84146322]
[1756581581781,0.0244005,108800.0,108790.0,2.84246322]
[1756581581986,0.001,108800.0,108790.0,2.84446322]
[1756581582387,0.05783,108810.0,108800.0,0.0919022]
[1756581582586,0.05783,108810.0,108800.0,1.76428536]
[1756581583486,0.02379,108810.0,108800.0,1.76528536]
[1756581583692,0.02379,108810.0,108800.0,1.76987536]
[1756581584095,0.02379,108810.0,108800.0,1.77887019]
[1756581585087,0.02379,108810.0,108800.0,2.04537019]
[1756581585288,0.02379,108810.0,108800.0,2.87953019]
[1756581585589,0.05911,108810.0,108800.0,2.87953019]
[1756581586190,0.05911,108810.0,108800.0,3.24033019]
[1756581587191,0.02379,108810.0,108800.0,3.24033019]
[1756581588697,0.02379,108810.0,108800.0,2.40617019]
[1756581589001,0.05911,108810.0,108800.0,3.24029019]
[1756581591497,0.05911,108810.0,108800.0,2.40617019]
[1756581591698,0.05911,108810.0,108800.0,3.24025019]
[1756581592097,0.05911,108810.0,108800.0,2.40617019]
[1756581592298,0.05911,108810.0,108800.0,3.24025019]
[1756581592999,0.05911,108810.0,108800.0,3.14834799]
[1756581593300,0.05911,108810.0,108800.0,4.89590799]
[1756581594399,0.08314689,108810.0,108800.0,4.89590799]
[1756581596101,0.04782689,108810.0,108800.0,4.98781029]
[1756581600302,0.04782689,108810.0,108800.0,4.06182799]
[1756581600493,0.08314689,108810.0,108800.0,4.89578799]
[1756581601305,0.08314689,108810.0,108800.0,4.98769019]
[1756581602504,0.08314689,108810.0,108800.0,4.89578799]
[1756581603701,0.08314689,108810.0,108800.0,4.06182799]
[1756581603905,0.08314689,108810.0,108800.0,4.89578799]
[1756581607609,0.08314689,108810.0,108800.0,4.06182799]
[1756581607810,0.08314689,108810.0,108800.0,4.89574799]
[1756581611502,0.08314689,108810.0,108800.0,4.89570799]
[1756581612909,0.04782689,108810.0,108800.0,4.89570799]
[1756581614710,0.08402689,108810.0,108800.0,4.89570799]
[1756581615606,0.04782689,108810.0,108800.0,4.89570799]
[1756581616509,0.02403689,108810.0,108800.0,4.89570799]
[1756581619014,0.02403689,108810.0,108800.0,4.17410799]
[1756581619214,0.02403689,108810.0,108800.0,4.89570799]
[1756581622118,0.02403689,108810.0,108800.0,3.14814799]
[1756581628824,0.02403689,108810.0,108800.0,4.89566799]
[1756581638131,0.06029689,108810.0,108800.0,4.89566799]
[1756581639733,0.02403689,108810.0,108800.0,4.89566799]
[1756581659153,0.06029689,108810.0,108800.0,4.89566799]
[1756581661857,0.06029689,108810.0,108800.0,3.14814799]
[1756581662061,0.02403689,108810.0,108800.0,3.14814799]
[1756581666861,0.02403689,108810.0,108800.0,4.89566799]
[1756581673282,0.02403689,108810.0,108800.0,3.14814799]
[1756581676783,0.02403689,108810.0,108800.0,3.16821983]
[1756581682887,0.06076689,108810.0,108800.0,3.16821983]
[1756581687990,0.02403689,108810.0,108800.0,3.16821983]
[1756581689497,0.06076689,108810.0,108800.0,3.16761983]
[1756581690988,0.02403689,108810.0,108800.0,3.16761983]
[1756581691492,0.06026689,108810.0,108800.0,3.16761983]
[1756581692396,0.06026689,108810.0,108800.0,2.33433983]
[1756581692590,0.06026689,108810.0,108800.0,3.16757983]
[1756581692994,0.06026689,108810.0,108800.0,2.33433983]
[1756581693194,0.06026689,108810.0,108800.0,3.16757983]
[1756581693491,0.62079461,108810.0,108800.0,1.39376184]
[1756581693694,0.69333693,108810.0,108800.0,1.34348956]
[1756581693893,0.69333693,108810.0,108800.0,2.46718544]
[1756581694595,0.69333693,108810.0,108800.0,2.20068544]
[1756581694796,0.69333693,108810.0,108800.0,2.22127542]
[1756581694998,0.69433693,108810.0,108800.0,2.22027542]
[1756581695295,0.64467461,108810.0,108800.0,2.22027542]
[1756581695897,0.33414689,108810.0,108800.0,2.22027542]
[1756581696098,0.64467461,108810.0,108800.0,2.22027542]
[1756581698298,0.33414689,108810.0,108800.0,2.22027542]
[1756581698497,0.64467461,108810.0,108800.0,2.22027542]
[1756581698796,0.33414689,108810.0,108800.0,2.22027542]
[1756581699892,0.64467461,108810.0,108800.0,2.22027542]
[1756581703594,0.64467461,108810.0,108800.0,2.48677542]
[1756581704800,0.33414689,108810.0,108800.0,2.48677542]
[1756581710607,0.33414689,108810.0,108800.0,1.86571998]
[1756581710804,0.33414689,108810.0,108800.0,2.48677542]
[1756581719219,0.08414689,108810.0,108800.0,2.48677542]
[1756581723417,0.08414689,108810.0,108800.0,1.86571998]
[1756581723619,0.08414689,108810.0,108800.0,2.48677542]
[1756581725227,0.08293689,108810.0,108800.0,2.48677542]
[1756581727426,0.08293689,108810.0,108800.0,1.03247998]
[1756581727627,0.08293689,108810.0,108800.0,2.48665542]
[1756581729626,0.08293689,108810.0,108800.0,2.48661542]
[1756581730326,0.08293689,108810.0,108800.0,1.65353542]
[1756581730527,0.08293689,108810.0,108800.0,2.48661542]
[1756581733726,0.39346461,108810.0,108800.0,1.32241772]
[1756581734028,0.80312693,108810.0,108800.0,1.14815772]
[1756581734224,0.80312693,108810.0,108800.0,0.83763]
[1756581734424,0.80312693,108810.0,108800.0,1.14815772]
[1756581736032,0.81252634,108810.0,108800.0,1.14815772]
[1756581737232,0.81252634,108810.0,108800.0,0.83763]
[1756581737432,0.81252634,108810.0,108800.0,1.14815772]
[1756581738630,0.81252634,108810.0,108800.0,0.83763]
[1756581738830,1.17332634,108810.0,108800.0,0.83763]
[1756581739035,1.48385406,108810.0,108800.0,0.00459]
[1756581739232,1.12366402,108810.0,108800.0,0.83763]
[1756581752036,0.76286402,108810.0,108800.0,0.83763]
[1756581753840,0.50189265,108810.0,108800.0,0.83763]
[1756581754036,0.81242037,108810.0,108800.0,0.83763]
[1756581759142,0.78838348,108810.0,108800.0,0.83763]
[1756581759742,0.73882713,108810.0,108800.0,0.83763]
[1756581765545,0.82911443,108810.0,108800.0,0.83763]
[1756581768142,0.51858671,108810.0,108800.0,0.83763]
[1756581768345,0.82911443,108810.0,108800.0,0.83763]
[1756581772047,1.18991443,108810.0,108800.0,0.83763]
[1756581772947,0.82911443,108810.0,108800.0,0.83763]
[1756581773147,1.18991443,108810.0,108800.0,0.83763]
[1756581776551,1.1237421,108810.0,108800.0,0.83763]
[1756581779154,0.8737421,108810.0,108800.0,0.83763]
[1756581781054,0.56321438,108810.0,108800.0,0.83763]
[1756581781252,0.8737421,108810.0,108800.0,0.83763]
[1756581782059,0.56321438,108810.0,108800.0,0.83763]
[1756581782258,0.8737421,108810.0,108800.0,1.14815772]
[1756581783260,0.8737421,108810.0,108800.0,0.83763]
[1756581783455,0.8737421,108810.0,108800.0,1.14815772]
[1756581786562,0.93991443,108810.0,108800.0,0.83763]
[1756581786964,0.57911443,108810.0,108800.0,1.14815772]
[1756581787667,0.26858671,108810.0,108800.0,1.14815772]
[1756581787867,0.57911443,108810.0,108800.0,1.14815772]
[1756581788366,0.26858671,108810.0,108800.0,1.14815772]
[1756581788568,0.26858671,108810.0,108800.0,0.31511772]
[1756581788767,0.57911443,108810.0,108800.0,0.83739]
[1756581788968,0.57911443,108810.0,108800.0,1.14791772]
[1756581790167,0.57911443,108810.0,108800.0,0.31511772]
[1756581790367,0.57911443,108810.0,108800.0,1.14791772]
[1756581794772,0.57911443,108810.0,108800.0,1.14787772]
[1756581796469,0.26858671,108810.0,108800.0,1.14787772]
[1756581796671,0.57911443,108810.0,108800.0,1.14787772]
[1756581799472,0.57911443,108810.0,108800.0,0.83735]
[1756581799667,0.57911443,108810.0,108800.0,1.14787772]
[1756581800570,0.26858671,108810.0,108800.0,1.14787772]
[1756581800773,0.54409443,108810.0,108800.0,1.14787772]
[1756581801066,0.4779221,108810.0,108800.0,1.14787772]
[1756581801264,0.5141921,108810.0,108800.0,1.14787772]
[1756581801969,0.46852269,108810.0,108800.0,1.14787772]
[1756581802176,0.15799497,108810.0,108800.0,1.14787772]
[1756581802470,0.46852269,108810.0,108800.0,1.14787772]
[1756581802669,0.50479269,108810.0,108800.0,1.14787772]
[1756581809373,0.19426497,108810.0,108800.0,1.50787772]
[1756581809677,0.46852269,108810.0,108800.0,1.00644544]
[1756581809976,0.46852269,108810.0,108800.0,2.14048544]
[1756581810577,0.50479269,108810.0,108800.0,1.30644544]
[1756581810875,0.50479269,108810.0,108800.0,2.14044544]
[1756581811479,0.50479269,108810.0,108800.0,1.30644544]
[1756581811771,0.50479269,108810.0,108800.0,0.83855]
[1756581811976,0.86559269,108810.0,108800.0,1.14907772]
[1756581813178,0.50479269,108810.0,108800.0,1.14907772]
[1756581814979,0.57096502,108810.0,108800.0,1.14927772]
[1756581815186,0.2604373,108810.0,108800.0,1.14927772]
[1756581815481,0.57096502,108810.0,108800.0,1.14927772]
[1756581816679,0.57096502,108810.0,108800.0,0.31511772]
[1756581816881,0.57096502,108810.0,108800.0,1.14971772]
[1756581817983,0.57096502,108810.0,108800.0,0.83919]
[1756581818281,0.57096502,108810.0,108800.0,1.14971772]
[1756581818476,0.57096502,108810.0,108800.0,0.83919]
[1756581818677,0.57096502,108810.0,108800.0,0.00459]
[1756581818883,0.57096502,108810.0,108800.0,1.14959772]
[1756581819284,0.57096502,108810.0,108800.0,0.31511772]
[1756581819485,0.57096502,108810.0,108800.0,1.14959772]
[1756581820075,0.57096502,108810.0,108800.0,0.31511772]
[1756581820279,0.86559269,108810.0,108800.0,0.83899]
[1756581820481,0.86559269,108810.0,108800.0,0.00459]
[1756581820676,2.32689274,108810.0,108800.0,0.00459]
[1756581820981,2.26072041,108810.0,108800.0,0.00459]
[1756581822185,2.32687877,108810.0,108800.0,0.00459]
[1756581822686,2.26072041,108810.0,108800.0,0.00459]
[1756581824187,2.32685468,108810.0,108800.0,0.00459]
[1756581824879,2.26072041,108810.0,108800.0,0.00459]
[1756581825188,2.32684476,108810.0,108800.0,0.00459]
[1756581828389,0.02382,108790.0,108780.0,0.01193]
[1756581828592,0.6214622,108790.0,108780.0,0.01193]
[1756581828789,0.93198992,108790.0,108780.0,0.01193]
[1756581829190,0.93195202,108790.0,108780.0,0.01193]
[1756581829691,0.93295202,108790.0,108780.0,0.01193]
[1756581830700,1.24347974,108790.0,108770.0,0.00459]
[1756581830898,1.09185329,108780.0,108770.0,0.01193]
[1756581831094,1.17637251,108780.0,108770.0,0.01193]
[1756581831393,1.24247974,108780.0,108770.0,0.00734]
[1756581832189,1.24247974,108780.0,108770.0,0.001]
[1756581832695,1.24247974,108780.0,108770.0,0.002]
[1756581833196,1.17637251,108780.0,108770.0,0.001]
[1756581833397,0.06044,108770.0,108760.0,0.86731552]
[1756581833592,0.53047383,108770.0,108760.0,0.83464]
[1756581833795,0.06044,108750.0,108740.0,0.02023213]
[1756581834013,1.17178251,108750.0,108740.0,0.02023213]
[1756581834299,1.55005862,108750.0,108730.0,0.84196]
[1756581834495,1.05518155,108740.0,108730.0,0.85664]
[1756581834694,1.49978634,108740.0,108720.0,0.02941809]
[1756581834896,1.05518155,108730.0,108720.0,0.02023809]
[1756581835096,1.18925862,108730.0,108720.0,0.02023809]
[1756581835307,1.18825862,108730.0,108720.0,0.02023809]
[1756581835506,1.18825862,108730.0,108720.0,0.03491809]
[1756581835801,0.88578455,108730.0,108720.0,0.03791809]
[1756581835997,0.92240455,108730.0,108720.0,0.02686]
[1756581836202,0.61187683,108730.0,108720.0,0.01768]
[1756581836402,0.92240455,108730.0,108720.0,0.02786]
[1756581837305,0.92290612,108730.0,108720.0,0.02786]
[1756581837806,0.87340001,108730.0,108720.0,0.02786]
[1756581840203,0.56237072,108730.0,108720.0,0.02786]
[1756581840406,0.87340001,108730.0,108720.0,0.02786]
[1756581840610,0.86434636,108730.0,108720.0,0.02786]
[1756581841904,0.19451707,108730.0,108720.0,0.38866]
[1756581842600,0.19451707,108730.0,108720.0,0.02786]
[1756581843208,0.19451707,108730.0,108720.0,0.58888929]
[1756581843794,0.19451707,108730.0,108720.0,0.27786]
[1756581844202,0.50554636,108730.0,108720.0,0.27786]
[1756581845298,0.19451707,108730.0,108720.0,0.27786]
[1756581845504,0.19551707,108730.0,108720.0,0.94568929]
[1756581849609,0.19551707,108730.0,108720.0,0.63466]
[1756581855308,0.24502318,108730.0,108720.0,0.63466]
[1756581855609,0.24502318,108730.0,108720.0,0.94568929]
[1756581857715,0.24502318,108730.0,108720.0,0.63466]
[1756581859315,0.18458318,108730.0,108720.0,1.29658268]
[1756581859620,0.07458318,108730.0,108720.0,1.29658268]
[1756581862318,0.02507707,108730.0,108720.0,1.29658268]
[1756581863204,0.0911843,108730.0,108720.0,1.29658268]
[1756581863717,0.0911843,108730.0,108720.0,1.56308268]
[1756581864418,0.0911843,108730.0,108720.0,1.23308268]
[1756581864620,0.0911843,108730.0,108720.0,1.25308268]
[1756581864916,0.0911843,108730.0,108720.0,1.58308268]
[1756581865117,0.0911843,108730.0,108720.0,0.94205339]
[1756581865316,0.0911843,108730.0,108720.0,1.58308268]
[1756581868618,0.0911843,108730.0,108720.0,1.55308268]
[1756581868921,0.02507707,108730.0,108720.0,1.55308268]
[1756581871621,0.02507707,108730.0,108720.0,1.30308268]
[1756581871922,0.07468384,108730.0,108720.0,1.28308268]
[1756581872122,0.07468384,108730.0,108720.0,1.29669612]
[1756581872514,0.07468384,108730.0,108720.0,0.98566683]
[1756581872711,0.07468384,108730.0,108720.0,1.29669612]
[1756581872914,0.07468384,108730.0,108720.0,2.14681612]
[1756581874522,0.07468384,108730.0,108720.0,2.14681315]
[1756581875019,0.07468384,108730.0,108720.0,2.45784244]
[1756581875219,0.02507707,108730.0,108720.0,2.70784244]
[1756581875923,0.02507707,108730.0,108720.0,2.39669315]
[1756581876220,0.02507707,108730.0,108720.0,2.70772244]
[1756581876520,0.02507707,108730.0,108720.0,2.70872244]
[1756581877020,0.02507707,108730.0,108720.0,2.39769315]
[1756581877722,0.02407707,108730.0,108720.0,2.39769315]
[1756581880822,0.02407707,108730.0,108720.0,2.45872244]
[1756581881324,0.02407707,108730.0,108720.0,2.53674731]
[1756581881526,0.02407707,108730.0,108720.0,2.78674731]
[1756581883431,0.02407707,108730.0,108720.0,2.78669253]
[1756581884121,0.02407707,108730.0,108720.0,1.31502239]
[1756581884323,0.02407707,108730.0,108720.0,2.69464353]
[1756581884525,0.02407707,108730.0,108720.0,1.84472353]
[1756581884725,0.02407707,108730.0,108720.0,2.69472353]
[1756581886436,0.02407707,108730.0,108720.0,2.78669253]
[1756581893844,0.03536,108750.0,108720.0,2.78669253]
[1756581894047,0.08112768,108750.0,108740.0,1.03243507]
[1756581894238,0.08112768,108750.0,108740.0,2.19247507]
[1756581895445,0.08412768,108750.0,108740.0,2.19247507]
[1756581895645,0.08512768,108750.0,108740.0,2.19247507]
[1756581895841,0.08312768,108750.0,108740.0,1.88247507]
[1756581896046,0.08312768,108750.0,108740.0,2.23247507]
[1756581896448,0.08312768,108750.0,108740.0,2.49897507]
[1756581896840,0.08312768,108750.0,108740.0,1.84748816]